fUSD/lending_fUSD_20240516
["ID","MTS","AMOUNT","RATE_DAILY","PERIOD"]
[327193502,1715888339140,-1000.0,0.00028763,30]
[327193503,1715888339165,-1000.0,0.00028763,30]
[327193504,1715888339188,-1000.0,0.00028763,30]
[327193505,1715888339213,-1000.0,0.00028763,30]
[327193506,1715888339239,-1000.0,0.00028763,30]
[327193507,1715888339264,-1000.0,0.00028763,30]
[327193508,1715888339288,-1000.0,0.00028763,30]
[327193509,1715888339314,-1020.84,0.00028763,60]
[327193510,1715888339338,-1020.84,0.00028763,60]
[327193511,1715888339363,-1020.84,0.00028763,60]
[327193512,1715888339387,-1000.0,0.00028763,30]
[327193513,1715888339410,-1021.04322869,0.00028763,60]
[327193514,1715888339434,-1000.0,0.00028763,30]
[327193515,1715888339458,-1000.0,0.00028763,30]
[327193516,1715888339481,-1000.0,0.00028763,30]
[327193517,1715888339516,-1000.0,0.00028763,30]
[327193518,1715888339557,-1000.0,0.00028763,30]
[327193519,1715888339585,-1000.0,0.00028763,30]
[327193520,1715888339608,-1000.0,0.00028763,30]
[327193521,1715888339631,-1000.0,0.00028763,30]
[327193522,1715888339654,-1000.0,0.00028763,30]
[327193523,1715888339678,-1000.0,0.00028763,30]
[327193524,1715888339706,-1000.0,0.00028763,30]
[327193525,1715888339734,-1000.0,0.00028763,30]
[327193526,1715888339758,-1000.0,0.00028763,30]
[327193527,1715888339785,-1000.0,0.00028763,30]
[327193528,1715888339811,-1277.189023,0.00028763,30]
[327193529,1715888376130,159.68,8.229e-05,2]
[327193530,1715888379625,47.95060806,8.228e-05,2]
[327193531,1715888379647,107.04939194,8.228e-05,2]
[327193700,1715888861456,137.25945453,8.219e-05,2]
[327193701,1715888861484,22.42054547,8.219e-05,2]
[327193718,1715889032006,-177.68,0.00010054,2]
[327193719,1715889032016,-250.0,0.00010065,2]
[327193720,1715889032026,-1000.0,0.00010071,2]
[327193721,1715889032035,-357.69,0.00010088,2]
[327193722,1715889032045,-244.31,0.00010105,2]
[327193723,1715889032054,-173.52,0.00010116,2]
[327193724,1715889032064,-2974.5,0.00010119,2]
[327193725,1715889032074,-150.0,0.00010224,2]
[327193726,1715889032083,-178.66202419,0.00010225,2]
[327193727,1715889032093,-391.00937571,0.00010225,2]
[327193728,1715889032103,-187.11309801,0.00010225,2]
[327193729,1715889032113,-194.10256223,0.00010225,2]
[327193730,1715889032123,-1483.35257594,0.00010225,2]
[327193731,1715889032133,-178.25,0.00010285,2]
[327193732,1715889032143,-3925.00221894,0.0001077,2]
[327193753,1715889037902,-1128.24841438,0.0001077,2]
[327193754,1715889037927,-3081.59999997,0.0001077,2]
[327193755,1715889038017,-25520.91873714,0.0001077,2]
[327193756,1715889038083,-14.91996125,0.0001077,2]
[327193757,1715889038093,-300.0,0.000108,3]
[327193758,1715889038102,-420.48,0.000108,2]
[327193759,1715889038111,-150.0,0.000108,2]
[327193760,1715889038121,-700.0,0.000109,3]
[327193761,1715889038130,-420.48,0.000109,2]
[327193762,1715889038140,-301.79,0.000109,2]
[327193763,1715889038152,-48606.86222775,0.0001095,6]
[327193764,1715889038164,-5959.05002,0.0001095,6]
[327193765,1715889038175,-17826.75,0.0001095,6]
[327193766,1715889038186,-7709.1150045,0.0001095,6]
[327193767,1715889038197,-3323.8375614,0.0001095,6]
[327193768,1715889038206,-1486.18,0.00010959,3]
[327193769,1715889038215,-543.6154,0.00010999,2]
[327193771,1715889038224,-500.0,0.00011028,2]
[327193773,1715889038233,-500.0,0.00011028,2]
[327193775,1715889038242,-500.0,0.00011028,2]
[327193777,1715889038251,-500.0,0.00011028,2]
[327193779,1715889038261,-500.0,0.00011028,2]
[327193781,1715889038275,-87.3670386,0.00011028,2]
[327193783,1715889038286,-412.6329614,0.00011028,2]
[327193786,1715889038295,-200.0,0.0001104,2]
[327193788,1715889038304,-973.0,0.00011041,2]
[327193789,1715889038315,-1397.0,0.00011041,2]
[327193791,1715889038324,-1261.0,0.00011041,2]
[327193793,1715889038333,-1790.0,0.00011041,2]
[327193795,1715889038342,-671.823,0.00011041,2]
[327193797,1715889038354,-950.867,0.00011041,2]
[327193799,1715889038364,-810.0,0.00011041,2]
[327193801,1715889038373,-164.0,0.00011041,2]
[327193803,1715889038382,-612.0,0.00011041,2]
[327193805,1715889038391,-230.693,0.00011041,2]
[327193807,1715889038404,-439.0,0.00011041,2]
[327193809,1715889038413,-1647.0,0.00011041,2]
[327193811,1715889038422,-2351.0,0.00011041,2]
[327193813,1715889038431,-469.319,0.00011041,2]
[327193815,1715889038440,-215.0,0.00011041,2]
[327193817,1715889038449,-5723.479,0.00011041,2]
[327193819,1715889038458,-152.0,0.00011041,2]
[327193820,1715889038467,-288.0,0.00011041,2]
[327193821,1715889038476,-151.355,0.00011041,2]
[327193822,1715889038485,-1500.885,0.00011041,2]
[327193823,1715889038495,-154.0,0.00011041,2]
[327193824,1715889038504,-299.452,0.00011041,2]
[327193825,1715889038513,-1103.649,0.00011041,2]
[327193826,1715889038522,-193.018,0.00011041,2]
[327193827,1715889038533,-150.0,0.00011041,2]
[327193828,1715889038543,-154.2,0.00011068,2]
[327193829,1715889038552,-1396.6275386,0.0001107,2]
[327193830,1715889038563,-1603.3724614,0.0001107,2]
[327193831,1715889038573,-584.5001,0.00011077,2]
[327193832,1715889038583,-200.0,0.0001109,2]
[327193833,1715889038592,-1000.0,0.0001109,2]
[327193834,1715889038602,-500.0,0.0001109,2]
[327193835,1715889038611,-154.0834074,0.00011091,2]
[327193836,1715889038620,-500.0,0.00011099,2]
[327193838,1715889038629,-640.21,0.00011099,2]
[327193840,1715889038639,-500.0,0.00011099,2]
[327193842,1715889038650,-500.0,0.00011099,2]
[327193844,1715889038658,-500.0,0.00011099,2]
[327193846,1715889038667,-500.0,0.00011099,2]
[327193848,1715889038676,-500.0,0.00011099,2]
[327193850,1715889038685,-500.0,0.00011099,2]
[327193851,1715889038694,-433.9340312,0.00011099,2]
[327193854,1715889038706,-66.0659688,0.00011099,2]
[327193856,1715889038715,-500.0,0.00011099,2]
[327193858,1715889038724,-500.0,0.00011099,2]
[327193860,1715889038733,-500.0,0.00011099,2]
[327193862,1715889038742,-500.0,0.00011099,2]
[327193864,1715889038751,-500.0,0.00011099,2]
[327193866,1715889038760,-500.0,0.00011099,2]
[327193868,1715889038769,-500.0,0.00011099,2]
[327193870,1715889038778,-307.8340312,0.00011099,2]
[327193872,1715889038789,-192.1659688,0.00011099,2]
[327193874,1715889038799,-500.0,0.00011099,2]
[327193876,1715889038808,-1203.68,0.00011099,2]
[327193878,1715889038816,-812.82,0.00011099,2]
[327193880,1715889038825,-500.0,0.00011099,2]
[327193882,1715889038834,-420.48,0.000111,2]
[327193884,1715889038843,-272.4,0.000111,2]
[327193886,1715889038852,-1322.0,0.000111,2]
[327193888,1715889038861,-153.623,0.00011126,2]
[327193890,1715889038870,-185.533396,0.00011126,2]
[327193892,1715889038879,-502.475522,0.00011126,2]
[327193894,1715889038888,-189.398628,0.00011126,2]
[327193896,1715889038899,-263.97923,0.00011126,2]
[327193898,1715889038908,-187.818993,0.00011126,2]
[327193899,1715889038917,-731.538096,0.00011126,2]
[327193900,1715889038927,-196.452252,0.00011126,2]
[327193901,1715889038938,-154.2,0.00011135,2]
[327193902,1715889038947,-322.07,0.00011169,2]
[327193903,1715889038957,-322.07,0.0001117,2]
[327193904,1715889038967,-322.07,0.0001117,2]
[327193905,1715889038976,-322.07,0.0001117,2]
[327193906,1715889038986,-238.56428051,0.00011176,2]
[327193907,1715889038996,-1024.8795696,0.00011176,2]
[327193908,1715889039005,-1570.71106409,0.00011176,2]
[327193917,1715889039936,-535.50869539,0.00011176,2]
[327194197,1715889047187,-107.13016742,0.00011176,2]
[327194198,1715889047199,-1699.9640035,0.00011176,2]
[327194199,1715889047209,-338.51989509,0.00011176,2]
[327194200,1715889047220,-779.61614784,0.00011176,2]
[327194201,1715889047310,-757.39838594,0.00011176,2]
[327194202,1715889047391,-1309.98,0.00011176,2]
[327194209,1715889382199,127.57945453,8.308e-05,2]
[327194210,1715889382222,32.10054547,8.308e-05,2]
[327194214,1715890159785,5906.97,0.0001063,15]
[327194215,1715890210632,255.0,2e-05,20]
[327194233,1715890232025,-295.64775825,0.00010091,2]
[327194234,1715890232036,-193.01543963,0.00010091,2]
[327194235,1715890232045,-143.49383189,0.00010092,2]
[327194248,1715890237897,-656.50616811,0.00010092,2]
[327194249,1715890237908,-428.07,0.00010092,2]
[327194251,1715890237917,-432.93365642,0.000101,2]
[327194254,1715890238007,-586.27968751,0.000101,2]
[327194255,1715890238020,-498.42228305,0.000101,2]
[327194256,1715890238030,-1479.97930507,0.00010112,2]
[327194257,1715890238068,-504.21309168,0.00010112,2]
[327194258,1715890238243,-479.23585153,0.00010112,2]
[327194282,1715890240061,-561.27049918,0.00010112,2]
[327194283,1715890242090,-543.36125254,0.00010112,2]
[327194284,1715890242100,-250.0,0.0001013,2]
[327194285,1715890242109,-69.55158588,0.0001013,2]
[327194286,1715890242121,-108.69841412,0.0001013,2]
[327194287,1715890242130,-150.0,0.00010144,2]
[327194288,1715890242140,-200.0,0.00010214,2]
[327194289,1715890242149,-189.73,0.00010219,2]
[327194290,1715890242158,-197.66,0.00010269,2]
[327194291,1715890242168,-341.0,0.0001054,2]
[327194292,1715890242178,-27.21158588,0.000108,3]
[327194293,1715890242193,-272.78841412,0.000108,3]
[327194294,1715890242203,-600.0,0.000109,3]
[327194295,1715890242212,-1000.0,0.000109,2]
[327194296,1715890242222,-150.0,0.00010967,2]
[327194297,1715890242232,-200.0,0.00011,2]
[327194298,1715890242241,-1000.0,0.00011,2]
[327194299,1715890242251,-1000.0,0.00011,2]
[327194300,1715890242260,-1000.0,0.00011,2]
[327194301,1715890242269,-1000.0,0.00011,2]
[327194302,1715890242279,-1000.0,0.00011,2]
[327194303,1715890242290,-1000.0,0.00011,2]
[327194304,1715890242300,-539.1587077,0.00011,2]
[327194305,1715890242313,-290.646,0.00011,2]
[327194306,1715890242325,-379.9422459,0.00011,2]
[327194307,1715890242352,-43.2530464,0.00011,2]
[327194308,1715890242362,-1000.0,0.00011,2]
[327194309,1715890242371,-1000.0,0.00011,2]
[327194310,1715890242381,-1000.0,0.00011,2]
[327194311,1715890242390,-1000.0,0.00011,2]
[327194312,1715890242400,-1000.0,0.00011,2]
[327194313,1715890242410,-1000.0,0.00011,2]
[327194314,1715890242420,-1000.0,0.00011,2]
[327194315,1715890242430,-1000.0,0.00011,2]
[327194316,1715890242438,-1004.0,0.00011,2]
[327194317,1715890242448,-1000.0,0.00011,2]
[327194318,1715890242458,-1000.0,0.00011,2]
[327194319,1715890242468,-1395.0,0.00011,3]
[327194320,1715890242478,-420.48,0.00011,2]
[327194321,1715890242488,-415.26,0.00011,2]
[327194322,1715890242498,-869.11,0.00011,2]
[327194323,1715890242508,-420.48,0.00011,2]
[327194324,1715890242518,-1000.0,0.00011,2]
[327194325,1715890242527,-150.0,0.00011041,2]
[327194326,1715890242536,-150.095,0.00011041,2]
[327194327,1715890242547,-150.0,0.00011041,2]
[327194329,1715890242558,-1261.0,0.00011041,2]
[327194330,1715890242567,-1647.13,0.00011041,2]
[327194331,1715890242579,-806.0,0.00011041,2]
[327194332,1715890242588,-222.461,0.00011041,2]
[327194333,1715890242597,-1006.319,0.00011041,2]
[327194334,1715890242606,-1519.711,0.00011041,2]
[327194335,1715890242616,-1060.0,0.00011041,2]
[327194336,1715890242625,-150.0,0.00011043,2]
[327194337,1715890242635,-2697.7606,0.00011078,2]
[327194338,1715890242644,-20813.8576689,0.0001108,2]
[327194339,1715890242654,-200.0,0.0001109,2]
[327194340,1715890242664,-200.0,0.00011091,2]
[327194341,1715890242674,-1000.0,0.00011091,2]
[327194342,1715890242683,-500.0,0.00011091,2]
[327194343,1715890242692,-150.0,0.00011118,2]
[327194344,1715890242701,-177.14,0.00011168,2]
[327194345,1715890242710,-2000.0,0.00011176,2]
[327194346,1715890242719,-3000.0,0.00011176,2]
[327194347,1715890242729,-403.1060611,0.00011176,2]
[327194348,1715890242738,-500.0,0.00011177,2]
[327194349,1715890242748,-500.0,0.00011177,2]
[327194350,1715890242757,-500.0,0.00011177,2]
[327194351,1715890242767,-503.85224682,0.00011177,2]
[327194352,1715890242776,-500.0,0.00011177,2]
[327194353,1715890242786,-165.05124706,0.00011178,2]
[327194354,1715890242795,-157.858956,0.00011178,2]
[327194355,1715890242804,-155.0,0.00011178,2]
[327194356,1715890242814,-155.0,0.00011178,2]
[327194358,1715890242824,-155.0,0.00011178,2]
[327194359,1715890242833,-155.78109303,0.00011178,2]
[327194361,1715890242842,-155.17178027,0.00011178,2]
[327194363,1715890242851,-175.90678897,0.00011178,2]
[327194365,1715890242861,-5266.11358225,0.00011178,2]
[327194366,1715890242870,-3778.05622727,0.00011178,2]
[327194368,1715890242880,-430.87701931,0.00011178,2]
[327194371,1715890242889,-16773.36788953,0.00011178,2]
[327194372,1715890242898,-155.0,0.00011178,2]
[327194375,1715890242907,-2382.39921483,0.00011178,2]
[327194377,1715890242918,-214.51359259,0.00011178,2]
[327194378,1715890242927,-155.76948322,0.00011178,2]
[327194380,1715890242936,-200.80038782,0.00011178,2]
[327194383,1715890242944,-437.63224991,0.00011178,2]
[327194384,1715890242954,-7506.69243159,0.00011178,2]
[327194385,1715890242963,-274.70024006,0.00011178,2]
[327194387,1715890242972,-762.41934842,0.00011178,2]
[327194388,1715890242982,-192.82741751,0.00011178,2]
[327194390,1715890242993,-180.99989025,0.00011178,2]
[327194391,1715890243003,-749.06207595,0.00011178,2]
[327194392,1715890243014,-269.87300239,0.00011178,2]
[327194393,1715890243025,-172.5998299,0.00011178,2]
[327194394,1715890243035,-500.0,0.00011178,2]
[327194395,1715890243044,-578.49457969,0.00011178,2]
[327194396,1715890243053,-500.0,0.00011178,2]
[327194397,1715890243064,-585.07890668,0.00011178,2]
[327194398,1715890243074,-500.0,0.00011178,2]
[327194399,1715890243083,-500.0,0.00011178,2]
[327194400,1715890243093,-500.0,0.00011178,2]
[327194401,1715890243103,-500.0,0.00011178,2]
[327194402,1715890243114,-806.95,0.00011178,2]
[327194403,1715890243124,-500.0,0.00011178,2]
[327194404,1715890243135,-500.0,0.00011178,2]
[327194405,1715890243146,-500.0,0.00011178,2]
[327194406,1715890243155,-500.0,0.00011178,2]
[327194407,1715890243166,-1543.12,0.00011178,2]
[327194408,1715890243174,-500.0,0.00011178,2]
[327194409,1715890243183,-667.86,0.00011178,2]
[327194410,1715890243193,-643.3,0.00011178,2]
[327194411,1715890243202,-500.0,0.00011178,2]
[327194412,1715890243211,-500.0,0.00011178,2]
[327194413,1715890243220,-615.61,0.00011178,2]
[327194414,1715890243229,-500.0,0.00011178,2]
[327194415,1715890243238,-500.0,0.00011178,2]
[327194416,1715890243247,-989.14,0.00011178,2]
[327194417,1715890243257,-500.0,0.00011178,2]
[327194418,1715890243265,-500.0,0.00011178,2]
[327194419,1715890243275,-500.0,0.00011178,2]
[327194420,1715890243283,-500.0,0.00011178,2]
[327194421,1715890243292,-500.0,0.00011178,2]
[327194422,1715890243302,-500.0,0.00011178,2]
[327194423,1715890243311,-633.55,0.00011178,2]
[327194424,1715890243320,-500.0,0.00011178,2]
[327194425,1715890243330,-500.0,0.00011178,2]
[327194426,1715890243339,-500.0,0.00011178,2]
[327194427,1715890243348,-555.00722408,0.00011178,2]
[327194428,1715890243357,-500.0,0.00011178,2]
[327194429,1715890243366,-500.0,0.00011178,2]
[327194430,1715890243376,-500.0,0.00011178,2]
[327194431,1715890243386,-500.0,0.00011178,2]
[327194432,1715890243396,-500.0,0.00011178,2]
[327194433,1715890243405,-510.6545631,0.00011178,2]
[327194434,1715890243414,-500.0,0.00011178,2]
[327194435,1715890243423,-500.0,0.00011178,2]
[327194436,1715890243432,-500.0,0.00011178,2]
[327194437,1715890243441,-507.28538708,0.00011178,2]
[327194438,1715890243450,-294.91282341,0.00011178,2]
[327194439,1715890243459,-500.0,0.00011178,2]
[327194440,1715890243468,-533.55302248,0.00011178,2]
[327194441,1715890243477,-812.73,0.00011178,2]
[327194442,1715890243487,-509.56566999,0.00011178,2]
[327194443,1715890243495,-500.0,0.00011178,2]
[327194444,1715890243504,-500.0,0.00011178,2]
[327194445,1715890243513,-500.0,0.00011178,2]
[327194446,1715890243522,-500.0,0.00011178,2]
[327194447,1715890243531,-500.0,0.00011178,2]
[327194448,1715890243540,-512.98702813,0.00011178,2]
[327194449,1715890243549,-500.0,0.00011178,2]
[327194450,1715890243558,-500.0,0.00011178,2]
[327194451,1715890243567,-500.0,0.00011178,2]
[327194452,1715890243575,-500.0,0.00011178,2]
[327194453,1715890243585,-500.0,0.00011178,2]
[327194454,1715890243595,-574.01,0.00011178,2]
[327194455,1715890243604,-500.0,0.00011178,2]
[327194456,1715890243613,-500.0,0.00011178,2]
[327194457,1715890243623,-500.0,0.00011178,2]
[327194458,1715890243632,-581.87,0.00011178,2]
[327194459,1715890243642,-513.64675288,0.00011178,2]
[327194460,1715890243652,-500.0,0.00011178,2]
[327194461,1715890243664,-500.0,0.00011178,2]
[327194462,1715890243673,-500.0,0.00011178,2]
[327194463,1715890243683,-503.70458072,0.00011178,2]
[327194464,1715890243692,-2314.61,0.00011178,2]
[327194465,1715890243703,-156.97148129,0.00011178,2]
[327194466,1715890243713,-500.0,0.00011178,2]
[327194467,1715890243722,-500.0,0.00011178,2]
[327194468,1715890243732,-500.0,0.00011178,2]
[327194469,1715890243742,-1021.27,0.00011178,2]
[327194470,1715890243751,-500.0,0.00011178,2]
[327194471,1715890243761,-1802.62,0.00011178,2]
[327194472,1715890243770,-500.0,0.00011178,2]
[327194473,1715890243780,-730.23761665,0.00011178,2]
[327194474,1715890243791,-176.56418672,0.00011178,2]
[327194475,1715890243801,-500.0,0.00011178,2]
[327194476,1715890243812,-500.0,0.00011178,2]
[327194477,1715890243822,-500.0,0.00011178,2]
[327194478,1715890243831,-526.46830541,0.00011178,2]
[327194479,1715890243840,-775.41,0.00011178,2]
[327194480,1715890243851,-500.0,0.00011178,2]
[327194481,1715890243860,-500.0,0.00011178,2]
[327194482,1715890243871,-500.0,0.00011178,2]
[327194483,1715890243881,-512.8,0.00011178,2]
[327194484,1715890243893,-1824.61,0.00011178,2]
[327194485,1715890243902,-517.29616921,0.00011178,2]
[327194486,1715890243912,-975.47,0.00011178,2]
[327194487,1715890243923,-500.0,0.00011178,2]
[327194488,1715890243932,-500.0,0.00011178,2]
[327194489,1715890243941,-500.0,0.00011178,2]
[327194490,1715890243951,-510.41,0.00011178,2]
[327194491,1715890243960,-500.0,0.00011178,2]
[327194492,1715890243971,-500.0,0.00011178,2]
[327194493,1715890243981,-515.81586475,0.00011178,2]
[327194494,1715890243990,-500.0,0.00011178,2]
[327194495,1715890243999,-576.14,0.00011178,2]
[327194496,1715890244009,-1875.0,0.00011178,2]
[327194497,1715890244019,-1288.45,0.00011178,2]
[327194498,1715890244029,-500.0,0.00011178,2]
[327194499,1715890244038,-500.0,0.00011178,2]
[327194500,1715890244049,-500.0,0.00011178,2]
[327194501,1715890244060,-1471.17,0.00011178,2]
[327194502,1715890244069,-500.0,0.00011178,2]
[327194503,1715890244078,-960.31,0.00011178,2]
[327194504,1715890244087,-500.0,0.00011178,2]
[327194505,1715890244096,-959.32,0.00011178,2]
[327194506,1715890244106,-150.0,0.00011178,2]
[327194507,1715890244116,-1161.13,0.00011178,2]
[327194508,1715890244125,-500.0,0.00011178,2]
[327194509,1715890244134,-500.0,0.00011178,2]
[327194510,1715890244143,-500.0,0.00011178,2]
[327194511,1715890244152,-1103.6,0.00011178,2]
[327194512,1715890244161,-500.0,0.00011178,2]
[327194513,1715890244172,-500.0,0.00011178,2]
[327194514,1715890244180,-500.0,0.00011178,2]
[327194515,1715890244189,-500.0,0.00011178,2]
[327194516,1715890244199,-539.2,0.00011178,2]
[327194517,1715890244208,-500.0,0.00011178,2]
[327194518,1715890244217,-500.0,0.00011178,2]
[327194519,1715890244227,-612.77,0.00011178,2]
[327194520,1715890244236,-905.82,0.00011178,2]
[327194521,1715890244245,-500.0,0.00011178,2]
[327194522,1715890244254,-500.0,0.00011178,2]
[327194523,1715890244263,-500.0,0.00011178,2]
[327194524,1715890244272,-500.0,0.00011178,2]
[327194525,1715890244281,-500.0,0.00011178,2]
[327194526,1715890244290,-500.0,0.00011178,2]
[327194527,1715890244299,-500.0,0.00011178,2]
[327194528,1715890244308,-505.85500088,0.00011178,2]
[327194529,1715890244317,-946.19,0.00011178,2]
[327194530,1715890244326,-500.0,0.00011178,2]
[327194531,1715890244335,-500.0,0.00011178,2]
[327194532,1715890244344,-1654.37,0.00011178,2]
[327194533,1715890244353,-713.81,0.00011178,2]
[327194534,1715890244362,-500.0,0.00011178,2]
[327194535,1715890244372,-500.0,0.00011178,2]
[327194536,1715890244381,-500.0,0.00011178,2]
[327194537,1715890244391,-500.0,0.00011178,2]
[327194538,1715890244400,-523.1886894,0.00011178,2]
[327194539,1715890244409,-514.17,0.00011178,2]
[327194540,1715890244418,-500.0,0.00011178,2]
[327194541,1715890244427,-500.0,0.00011178,2]
[327194542,1715890244436,-500.0,0.00011178,2]
[327194543,1715890244445,-500.0,0.00011178,2]
[327194544,1715890244454,-536.96732849,0.00011178,2]
[327194545,1715890244463,-500.0,0.00011178,2]
[327194546,1715890244472,-500.0,0.00011178,2]
[327194547,1715890244481,-547.27,0.00011178,2]
[327194548,1715890244490,-500.0,0.00011178,2]
[327194549,1715890244500,-608.58,0.00011178,2]
[327194550,1715890244510,-1164.34,0.00011178,2]
[327194551,1715890244519,-500.0,0.00011178,2]
[327194552,1715890244528,-500.0,0.00011178,2]
[327194553,1715890244537,-500.0,0.00011178,2]
[327194554,1715890244546,-500.0,0.00011178,2]
[327194555,1715890244555,-500.0,0.00011178,2]
[327194556,1715890244564,-347.29988053,0.00011178,2]
[327194557,1715890244574,-500.0,0.00011178,2]
[327194558,1715890244583,-1153.53,0.00011178,2]
[327194559,1715890244592,-778.95,0.00011178,2]
[327194560,1715890244601,-500.0,0.00011178,2]
[327194561,1715890244611,-500.0,0.00011178,2]
[327194562,1715890244620,-500.0,0.00011178,2]
[327194563,1715890244629,-500.0,0.00011178,2]
[327194564,1715890244639,-500.0,0.00011178,2]
[327194565,1715890244648,-500.0,0.00011178,2]
[327194566,1715890244660,-500.0,0.00011178,2]
[327194567,1715890244670,-500.0,0.00011178,2]
[327194568,1715890244680,-500.0,0.00011178,2]
[327194569,1715890244689,-500.0,0.00011178,2]
[327194570,1715890244699,-917.88,0.00011178,2]
[327194571,1715890244708,-500.0,0.00011178,2]
[327194572,1715890244717,-500.0,0.00011178,2]
[327194573,1715890244726,-500.0,0.00011178,2]
[327194574,1715890244736,-668.25,0.00011178,2]
[327194575,1715890244745,-500.0,0.00011178,2]
[327194576,1715890244754,-500.0,0.00011178,2]
[327194577,1715890244763,-500.0,0.00011178,2]
[327194578,1715890244772,-500.0,0.00011178,2]
[327194579,1715890244781,-500.0,0.00011178,2]
[327194580,1715890244790,-500.0,0.00011178,2]
[327194581,1715890244799,-500.0,0.00011178,2]
[327194582,1715890244808,-500.0,0.00011178,2]
[327194583,1715890244817,-500.0,0.00011178,2]
[327194584,1715890244826,-500.0,0.00011178,2]
[327194585,1715890244835,-513.22324487,0.00011178,2]
[327194586,1715890244845,-500.0,0.00011178,2]
[327194587,1715890244854,-500.0,0.00011178,2]
[327194588,1715890244864,-500.0,0.00011178,2]
[327194589,1715890244873,-710.96,0.00011178,2]
[327194590,1715890244882,-500.0,0.00011178,2]
[327194591,1715890244891,-500.0,0.00011178,2]
[327194592,1715890244900,-500.0,0.00011178,2]
[327194593,1715890244909,-742.3,0.00011178,2]
[327194594,1715890244919,-418.90795537,0.00011178,2]
[327194595,1715890244928,-500.0,0.00011178,2]
[327194596,1715890244937,-500.0,0.00011178,2]
[327194597,1715890244946,-500.0,0.00011178,2]
[327194598,1715890244955,-1500.05,0.00011178,2]
[327194599,1715890244964,-1140.38,0.00011178,2]
[327194600,1715890244974,-500.0,0.00011178,2]
[327194601,1715890244983,-500.0,0.00011178,2]
[327194602,1715890244992,-500.0,0.00011178,2]
[327194603,1715890245002,-500.0,0.00011178,2]
[327194604,1715890245011,-568.85,0.00011178,2]
[327194605,1715890245021,-500.0,0.00011178,2]
[327194606,1715890245030,-500.0,0.00011178,2]
[327194607,1715890245040,-500.0,0.00011178,2]
[327194608,1715890245049,-513.6694823,0.00011178,2]
[327194609,1715890245058,-500.0,0.00011178,2]
[327194610,1715890245067,-965.09,0.00011178,2]
[327194611,1715890245076,-507.87860352,0.00011178,2]
[327194612,1715890245085,-865.94,0.00011178,2]
[327194613,1715890245094,-814.39,0.00011178,2]
[327194614,1715890245104,-500.0,0.00011178,2]
[327194615,1715890245113,-1398.97,0.00011178,2]
[327194616,1715890245121,-473.715444,0.00011178,2]
[327194617,1715890245131,-500.0,0.00011178,2]
[327194618,1715890245140,-500.0,0.00011178,2]
[327194619,1715890245149,-1666.7,0.00011178,2]
[327194620,1715890245157,-500.0,0.00011178,2]
[327194621,1715890245168,-1635.35,0.00011178,2]
[327194622,1715890245177,-500.0,0.00011178,2]
[327194623,1715890245187,-500.0,0.00011178,2]
[327194624,1715890245195,-500.0,0.00011178,2]
[327194625,1715890245205,-500.0,0.00011178,2]
[327194626,1715890245213,-500.0,0.00011178,2]
[327194627,1715890245223,-1054.63,0.00011178,2]
[327194628,1715890245232,-500.0,0.00011178,2]